bitfinex/quotes_BTCUSD_20251025
["timestamp","ask_amount","ask_price","bid_price","bid_amount"]
[1761384315713,1.42355315,111730.0,111720.0,0.00078562]
[1761384316953,1.42255315,111730.0,111720.0,0.00078562]
[1761384317155,1.42455315,111730.0,111720.0,0.00078562]
[1761384317367,1.51437216,111730.0,111720.0,0.00078562]
[1761384318027,1.52312768,111730.0,111720.0,0.00078562]
[1761384319278,1.49897825,111730.0,111720.0,0.00078562]
[1761384320118,1.91755616,111730.0,111720.0,0.00078562]
[1761384320330,1.61294669,111730.0,111720.0,0.00078562]
[1761384322306,1.61653107,111730.0,111720.0,0.00078562]
[1761384324317,1.00731213,111730.0,111720.0,0.00078562]
[1761384324542,1.61653107,111730.0,111720.0,0.00078562]
[1761384325795,1.95331713,111730.0,111720.0,0.00078562]
[1761384326015,4.36377058,111730.0,111690.0,0.05]
[1761384326232,0.56524933,111690.0,111680.0,0.0004]
[1761384326482,0.56524933,111690.0,111680.0,0.00089115]
[1761384326483,1.397532,111690.0,111680.0,0.00089115]
[1761384326703,1.78169201,111690.0,111680.0,0.00089115]
[1761384326914,1.78607865,111690.0,111680.0,0.00089115]
[1761384328244,1.76197249,111690.0,111680.0,0.00089115]
[1761384329109,1.76297249,111690.0,111680.0,0.00089115]
[1761384329517,1.36881249,111690.0,111680.0,0.00089115]
[1761384329727,1.15295269,111690.0,111680.0,0.00089115]
[1761384329933,1.76297249,111690.0,111680.0,0.00089115]
[1761384330568,1.76305249,111690.0,111680.0,0.00089115]
[1761384330775,1.76301249,111690.0,111680.0,0.00089115]
[1761384330980,1.36881249,111690.0,111680.0,0.00089115]
[1761384331181,1.45800259,111690.0,111680.0,0.00089115]
[1761384331386,1.76301249,111690.0,111680.0,0.00089115]
[1761384331600,1.06380259,111690.0,111680.0,0.00089115]
[1761384331888,1.15303269,111690.0,111680.0,0.00089115]
[1761384332084,1.36881249,111690.0,111680.0,0.00362317]
[1761384332293,1.70577249,111690.0,111680.0,0.00362317]
[1761384332504,1.76309249,111690.0,111680.0,0.00362317]
[1761384332721,1.36881249,111690.0,111680.0,0.00362317]
[1761384333167,1.76309249,111690.0,111680.0,0.00362317]
[1761384333595,1.45808259,111690.0,111680.0,0.00362317]
[1761384334684,1.45804259,111690.0,111680.0,0.00362317]
[1761384334903,1.76305249,111690.0,111680.0,0.00362317]
[1761384335117,1.15303269,111690.0,111680.0,0.00362317]
[1761384335321,1.76305249,111690.0,111680.0,0.00362317]
[1761384336295,1.36881249,111690.0,111680.0,0.00362317]
[1761384336523,1.76309249,111690.0,111680.0,0.00362317]
[1761384336931,1.36881249,111690.0,111680.0,0.00362317]
[1761384337311,1.85727249,111690.0,111680.0,0.00362317]
[1761384337496,1.76305249,111690.0,111680.0,0.00362317]
[1761384339330,1.15303269,111690.0,111680.0,0.00362317]
[1761384339564,1.76305249,111690.0,111680.0,0.00362317]
[1761384341162,1.78715865,111690.0,111680.0,0.00362317]
[1761384342351,1.17713885,111690.0,111680.0,0.00362317]
[1761384342576,1.78715865,111690.0,111680.0,0.00362317]
[1761384345354,1.75097637,111690.0,111680.0,0.00362317]
[1761384345981,1.78715865,111690.0,111680.0,0.00362317]
[1761384346235,1.17713885,111690.0,111680.0,0.00362317]
[1761384346443,1.78715865,111690.0,111680.0,0.00362317]
[1761384347107,1.81929338,111690.0,111680.0,0.00362317]
[1761384347325,1.91351338,111690.0,111680.0,0.00362317]
[1761384347527,1.81929338,111690.0,111680.0,0.00362317]
[1761384348930,1.7831111,111690.0,111680.0,0.00362317]
[1761384350098,1.3888711,111690.0,111680.0,0.00362317]
[1761384350314,1.58277338,111690.0,111680.0,0.00362317]
[1761384350540,1.81925338,111690.0,111680.0,0.00362317]
[1761384350745,1.42505338,111690.0,111680.0,0.00362317]
[1761384350961,1.81925338,111690.0,111680.0,0.00362317]
[1761384351371,1.42505338,111690.0,111680.0,0.00362317]
[1761384351790,1.81925338,111690.0,111680.0,0.00362317]
[1761384352208,1.79514722,111690.0,111680.0,0.00362317]
[1761384352614,1.40094722,111690.0,111680.0,0.00362317]
[1761384352817,1.79514722,111690.0,111680.0,0.00362317]
[1761384353234,1.84343004,111690.0,111680.0,0.00362317]
[1761384353446,1.44923004,111690.0,111680.0,0.00362317]
[1761384353661,1.79514722,111690.0,111680.0,0.00362317]
[1761384354260,1.84343004,111690.0,111680.0,0.00362317]
[1761384355058,1.81129531,111690.0,111680.0,0.00362317]
[1761384355274,1.41709531,111690.0,111680.0,0.00362317]
[1761384355480,1.81125531,111690.0,111680.0,0.00362317]
[1761384356365,1.20123551,111690.0,111680.0,0.00362317]
[1761384356580,1.81125531,111690.0,111680.0,0.00362317]
[1761384357907,1.20123551,111690.0,111680.0,0.00362317]
[1761384358122,1.81125531,111690.0,111680.0,0.00362317]
[1761384358939,1.41709531,111690.0,111680.0,0.00362317]
[1761384359154,1.81125531,111690.0,111680.0,0.00362317]
[1761384359666,1.41709531,111690.0,111680.0,0.00362317]
[1761384359902,1.81125531,111690.0,111680.0,0.00362317]
[1761384360316,1.7214363,111690.0,111680.0,0.00362317]
[1761384361421,1.3272763,111690.0,111680.0,0.00362317]
[1761384361629,1.7214363,111690.0,111680.0,0.00362317]
[1761384361849,1.81125531,111690.0,111680.0,0.00362317]
[1761384362822,1.83825881,111690.0,111680.0,0.00362317]
[1761384363090,1.78997599,111690.0,111680.0,0.00362317]
[1761384365316,1.83833151,111690.0,111680.0,0.00362317]
[1761384367624,1.90554801,111690.0,111680.0,0.00362317]
[1761384368021,1.41716801,111690.0,111680.0,0.00362317]
[1761384368228,1.81128801,111690.0,111680.0,0.00362317]
[1761384371140,1.39784846,111690.0,111680.0,0.00362317]
[1761384371351,1.81126902,111690.0,111680.0,0.00362317]
[1761384371758,1.79192846,111690.0,111680.0,0.00362317]
[1761384372104,1.74357294,111690.0,111680.0,0.00362317]
[1761384373244,1.81126435,111690.0,111680.0,0.00362317]
[1761384374175,1.81126398,111690.0,111680.0,0.00362317]
[1761384377126,1.84349641,111690.0,111680.0,0.00362317]
[1761384378342,1.44941641,111690.0,111680.0,0.00362317]
[1761384378549,1.84345641,111690.0,111680.0,0.00362317]
[1761384381552,1.68589641,111690.0,111680.0,0.00362317]
[1761384381771,1.84345641,111690.0,111680.0,0.00362317]
[1761384382264,1.83987063,111690.0,111680.0,0.00362317]
[1761384383740,1.83983063,111690.0,111680.0,0.00362317]
[1761384386270,1.44583063,111690.0,111680.0,0.00362317]
[1761384386482,1.79147962,111690.0,111680.0,0.00362317]
[1761384386890,1.79144438,111690.0,111680.0,0.00362317]
[1761384387747,1.39744438,111690.0,111680.0,0.00362317]
[1761384387956,1.79144438,111690.0,111680.0,0.00362317]
[1761384393749,1.83979539,111690.0,111680.0,0.00362317]
[1761384396482,1.86679889,111690.0,111680.0,0.00362317]
[1761384396910,2.13955874,111690.0,111680.0,0.00362317]
[1761384397405,1.83456646,111690.0,111680.0,0.00362317]
[1761384397857,2.13955874,111690.0,111680.0,0.00362317]
[1761384407067,1.80756296,111690.0,111680.0,0.00362317]
[1761384410506,1.83979498,111690.0,111680.0,0.00362317]
[1761384417086,1.22981042,111690.0,111680.0,0.00362317]
[1761384417298,1.83979498,111690.0,111680.0,0.00362317]
[1761384419395,1.80756296,111690.0,111680.0,0.00362317]
[1761384431551,2.11255524,111690.0,111680.0,0.00362317]
[1761384433103,2.09321521,111690.0,111680.0,0.00362317]
[1761384433311,2.11256482,111690.0,111680.0,0.00362317]
[1761384434366,1.80757254,111690.0,111680.0,0.00362317]
[1761384436235,2.11256482,111690.0,111680.0,0.00362317]
[1761384442811,2.13945828,111690.0,111680.0,0.00362317]
[1761384443261,2.12010867,111690.0,111680.0,0.00362317]
[1761384443470,2.13945853,111690.0,111680.0,0.00362317]
[1761384448574,2.23367853,111690.0,111680.0,0.00362317]
[1761384448783,1.83462857,111690.0,111680.0,0.00362317]
[1761384456247,1.86687568,111690.0,111680.0,0.00362317]
[1761384464062,1.2567288,111690.0,111680.0,0.00362317]
[1761384464273,1.86687568,111690.0,111680.0,0.00362317]
[1761384471479,1.81852467,111690.0,111680.0,0.00362317]
[1761384480359,1.42452467,111690.0,111680.0,0.00362317]
[1761384480584,1.81844467,111690.0,111680.0,0.00362317]
[1761384483500,1.84262026,111690.0,111680.0,0.00362317]
[1761384483919,0.61823306,111690.0,111680.0,0.00362317]
[1761384484133,0.56091306,111690.0,111680.0,0.00362317]
[1761384484348,0.74342595,111690.0,111680.0,0.03051295]
[1761384484580,0.77960823,111690.0,111680.0,0.03051295]
[1761384484805,0.56484823,111690.0,111680.0,0.03051295]
[1761384485019,0.72228823,111690.0,111680.0,0.03051295]
[1761384485226,1.11960823,111690.0,111680.0,0.03051295]
[1761384485487,0.90484823,111690.0,111680.0,0.03051295]
[1761384485687,1.11960823,111690.0,111680.0,0.03051295]
[1761384486400,0.90484823,111690.0,111680.0,0.20959604]
[1761384486600,1.09543264,111690.0,111680.0,0.20959604]
[1761384486808,0.91636558,111690.0,111680.0,0.20959604]
[1761384487008,1.09543264,111690.0,111680.0,0.20959604]
[1761384487652,1.09443264,111690.0,111680.0,0.20959604]
[1761384489794,0.70060558,111690.0,111680.0,0.20959604]
[1761384490005,0.07666986,111690.0,111680.0,0.29941505]
[1761384490209,0.21476,111690.0,111680.0,0.29941505]
[1761384502148,0.6989005,111690.0,111680.0,0.29941505]
[1761384504105,0.6989005,111690.0,111680.0,0.12033196]
[1761384505324,0.6989005,111690.0,111680.0,0.29941505]
[1761384505951,0.39382706,111690.0,111680.0,0.29941505]
[1761384508457,0.6989005,111690.0,111680.0,0.29941505]
[1761384509297,0.6989005,111690.0,111680.0,0.12033196]
[1761384509737,0.6989005,111690.0,111680.0,0.29941505]
[1761384510778,0.69873649,111690.0,111680.0,0.29941505]
[1761384511346,0.69873649,111690.0,111680.0,0.12033196]
[1761384514538,0.69873649,111690.0,111680.0,0.29941505]
[1761384514745,0.69873649,111690.0,111680.0,0.12033196]
[1761384520069,0.69873649,111690.0,111680.0,0.29941505]
[1761384520716,0.82396398,111700.0,111680.0,0.29941505]
[1761384520928,0.21468,111690.0,111680.0,0.29668303]
[1761384521131,0.21468,111690.0,111680.0,0.26979325]
[1761384521563,0.21468,111690.0,111680.0,0.29667835]
[1761384521993,0.21468,111690.0,111680.0,0.29867835]
[1761384522426,0.21468,111690.0,111680.0,0.29667835]
[1761384522641,0.82396398,111700.0,111680.0,0.29667835]
[1761384522853,0.15736,111690.0,111680.0,0.29667835]
[1761384523050,0.15736,111690.0,111680.0,0.26979325]
[1761384523262,0.15736,111690.0,111680.0,0.27179325]
[1761384523421,0.15736,111690.0,111680.0,0.29867818]
[1761384524050,0.82396398,111700.0,111680.0,0.29867818]
[1761384524255,0.15736,111690.0,111680.0,0.29867818]
[1761384524474,0.15736,111690.0,111680.0,0.26979325]
[1761384524804,0.15736,111690.0,111680.0,0.29867633]
[1761384525422,0.15736,111690.0,111680.0,0.29667633]
[1761384525815,0.15736,111690.0,111680.0,0.29867633]
[1761384528055,0.23637102,111700.0,111690.0,0.17906706]
[1761384528217,0.69864045,111700.0,111690.0,0.28679277]
[1761384528431,0.39373102,111700.0,111690.0,0.26888607]
[1761384528677,0.69864045,111700.0,111690.0,0.29576915]
[1761384528922,0.21468,111700.0,111690.0,0.60067858]
[1761384529532,0.21468,111700.0,111690.0,0.29576915]
[1761384529777,0.83289618,111710.0,111700.0,0.17905102]
[1761384529952,0.76199278,111710.0,111700.0,0.19695612]
[1761384530323,0.76199278,111710.0,111700.0,0.19901465]
[1761384530524,0.76199278,111710.0,111700.0,0.20799128]
[1761384533749,0.76199278,111710.0,111700.0,0.02894026]
[1761384533959,0.42195278,111710.0,111700.0,0.22589638]
[1761384534161,0.40262675,111710.0,111700.0,0.20799128]
[1761384534509,0.40262675,111710.0,111700.0,0.29781029]
[1761384534941,0.70753618,111710.0,111700.0,0.29781029]
[1761384535775,0.70753618,111710.0,111700.0,0.29981029]
[1761384536786,0.40262675,111710.0,111700.0,0.29981029]
[1761384541747,0.22359175,111710.0,111700.0,0.29981029]
[1761384542343,0.2146,111710.0,111700.0,0.29981029]
[1761384545903,0.49291139,111720.0,111700.0,0.29981029]
[1761384546253,0.49291139,111720.0,111700.0,0.29775176]
[1761384546254,0.2146,111710.0,111700.0,0.29775176]
[1761384546497,0.2146,111710.0,111700.0,0.27087003]
[1761384546716,0.2146,111710.0,111700.0,0.27292856]
[1761384546952,0.78826632,111730.0,111700.0,0.27092856]
[1761384547176,0.2146,111720.0,111710.0,0.28674332]
[1761384547406,0.2146,111720.0,111710.0,0.26883982]
[1761384547864,0.2146,111720.0,111710.0,0.27056169]
[1761384555433,0.2146,111720.0,111710.0,0.29744009]
[1761384555635,0.51950943,111720.0,111710.0,0.29744009]
[1761384556385,0.2146,111720.0,111710.0,0.29744009]
[1761384562983,0.2146,111720.0,111710.0,0.27056169]
[1761384563124,0.6985284,111720.0,111710.0,0.27056169]
[1761384569644,0.6985284,111720.0,111710.0,0.09154088]
[1761384572227,0.39361897,111720.0,111710.0,0.09154088]
[1761384572429,0.6985284,111720.0,111710.0,0.09154088]
[1761384572841,0.39361897,111720.0,111710.0,0.09154088]
[1761384580908,0.39361897,111720.0,111710.0,0.28847938]
[1761384581114,0.39361897,111720.0,111710.0,0.27057588]
[1761384586152,0.05728,111720.0,111710.0,0.27057588]
[1761384586356,0.39357897,111720.0,111710.0,0.27057588]
[1761384586504,0.21456,111720.0,111710.0,0.27057588]
[1761384589918,0.21456,111720.0,111710.0,0.29745238]
[1761384592467,0.54,111730.0,111720.0,0.17901897]
[1761384592669,0.69724,111730.0,111720.0,0.28673987]
[1761384593040,0.69724,111730.0,111720.0,0.27022325]
[1761384593446,0.87624295,111730.0,111720.0,0.27022325]
[1761384593654,0.87624295,111730.0,111720.0,0.27027237]
[1761384593860,0.87624295,111730.0,111720.0,0.27227237]
[1761384601459,0.35724,111730.0,111720.0,0.27227237]
[1761384602637,0.53624295,111730.0,111720.0,0.27227237]
[1761384607509,0.35724,111730.0,111720.0,0.27227237]
[1761384608082,0.53624295,111730.0,111720.0,0.27227237]
[1761384608971,0.35724,111730.0,111720.0,0.27227237]
[1761384615824,0.2,111730.0,111720.0,0.57699649]
[1761384616071,0.35724,111730.0,111720.0,2.57699649]
[1761384616320,0.35724,111730.0,111720.0,2.27227237]
[1761384617646,0.35724,111730.0,111720.0,0.27227237]
[1761384624243,0.35728,111730.0,111720.0,0.27227237]
[1761384625582,0.35728,111730.0,111720.0,0.23890047]
[1761384626603,0.35728,111730.0,111720.0,2.23890047]
[1761384634791,0.35728,111730.0,111720.0,2.54350868]
[1761384636839,0.35728,111730.0,111720.0,2.23890047]
[1761384637070,0.35728,111730.0,111720.0,2.54350868]
[1761384637470,0.35728,111730.0,111720.0,2.23890047]
[1761384638515,0.66188821,111730.0,111720.0,2.23890047]
[1761384644467,0.35728,111730.0,111720.0,2.23890047]
[1761384644674,0.66188821,111730.0,111720.0,2.23890047]
[1761384646487,0.35728,111730.0,111720.0,2.23890047]
[1761384648937,0.66188821,111730.0,111720.0,2.23890047]
[1761384653379,0.35728,111730.0,111720.0,2.23890047]
[1761384660782,0.84089116,111730.0,111720.0,0.23890047]
[1761384661180,0.84089116,111730.0,111720.0,0.0598815]
[1761384661624,0.35728,111730.0,111720.0,0.23890047]
[1761384662220,0.66188821,111730.0,111720.0,0.23890047]
[1761384662423,0.84089116,111730.0,111720.0,0.23890047]
[1761384668907,0.53628295,111730.0,111720.0,0.23890047]
[1761384671174,0.84089116,111730.0,111720.0,0.0598815]
[1761384671595,0.84089116,111730.0,111720.0,0.23890047]
[1761384675887,0.84089116,111730.0,111720.0,0.0598815]
[1761384676862,0.84089116,111730.0,111720.0,0.00343439]
[1761384676863,1.5946445,111730.0,111720.0,0.00343439]
[1761384677318,1.63082678,111730.0,111720.0,0.00343439]
[1761384677773,1.54100777,111730.0,111720.0,0.00343439]
[1761384678211,1.23639956,111730.0,111720.0,0.00143439]
[1761384678876,1.54100777,111730.0,111720.0,0.00143439]
[1761384680623,1.23639956,111730.0,111720.0,0.00143439]
[1761384681413,1.54100777,111730.0,111720.0,0.00143439]
[1761384681926,1.63082678,111730.0,111720.0,0.00143439]
[1761384682587,1.32621857,111730.0,111720.0,0.00143439]
[1761384683804,1.65770475,111730.0,111720.0,0.00143439]
[1761384688764,1.65767781,111730.0,111720.0,0.00143439]
[1761384696895,1.35323926,111730.0,111720.0,0.00143439]
[1761384701705,1.04845943,111730.0,111720.0,0.00143439]
[1761384701907,1.35323926,111730.0,111720.0,0.00143439]
[1761384702861,1.26342025,111730.0,111720.0,0.00143439]
[1761384705509,1.28754178,111730.0,111720.0,0.00143439]
[1761384709260,1.24412303,111730.0,111720.0,0.00143439]
[1761384709703,1.28761672,111730.0,111720.0,0.00143439]
[1761384724477,0.98283689,111730.0,111720.0,0.00143439]
[1761384724688,1.28761672,111730.0,111720.0,0.00143439]
[1761384726056,0.98283689,111730.0,111720.0,0.00143439]
[1761384726258,1.28761672,111730.0,111720.0,0.00143439]
[1761384726470,1.26073875,111730.0,111720.0,0.00143439]
[1761384728830,1.31801875,111730.0,111720.0,0.00143439]
[1761384751390,1.31804265,111730.0,111720.0,0.00143439]
[1761384756822,1.62277882,111730.0,111720.0,0.00143439]
[1761384757500,1.64965901,111730.0,111720.0,0.00143439]
[1761384786218,1.68187656,111730.0,111720.0,0.00143439]
[1761384786423,1.65770012,111730.0,111720.0,0.00143439]
[1761384786648,1.74751913,111730.0,111720.0,0.00143439]
[1761384788166,1.77168494,111730.0,111720.0,0.00143439]
[1761384792384,1.68386593,111730.0,111720.0,0.00143439]
[1761384793519,1.68186593,111730.0,111720.0,0.00143439]
[1761384794028,1.68186593,111730.0,111720.0,0.00243439]
[1761384804671,1.68183039,111730.0,111720.0,0.00243439]
[1761384812268,1.6576796,111730.0,111720.0,0.00243439]
[1761384812694,1.74749861,111730.0,111720.0,0.00243439]
[1761384816966,1.44279137,111730.0,111720.0,0.00243439]
[1761384818533,1.74760013,111730.0,111720.0,0.00243439]
[1761384819684,1.79592645,111730.0,111720.0,0.00243439]
[1761384821074,1.7637089,111730.0,111720.0,0.00243439]
[1761384821374,1.79593695,111730.0,111720.0,0.00243439]
[1761384821620,1.88575596,111730.0,111720.0,0.00243439]
[1761384822399,1.85352791,111730.0,111720.0,0.00243439]
[1761384828164,1.88574365,111730.0,111720.0,0.00243439]
[1761384832727,1.85352791,111730.0,111720.0,0.00243439]
[1761384833212,1.65352791,111730.0,111720.0,0.00243439]
[1761384837602,1.6635279,111730.0,111720.0,0.00243439]
[1761384839099,1.61520158,111730.0,111720.0,1e-08]
[1761384839737,1.60520159,111730.0,111720.0,1e-08]
[1761384841208,0.17906706,111690.0,111680.0,0.02728496]
[1761384841414,0.41129868,111690.0,111680.0,0.11759512]
[1761384841716,0.39338706,111690.0,111680.0,0.11759512]
[1761384843772,0.39338706,111690.0,111670.0,0.15604733]
[1761384843965,0.39387815,111690.0,111680.0,0.17908309]
[1761384844174,0.39387815,111690.0,111670.0,0.24586634]
[1761384844589,0.39387815,111690.0,111680.0,0.02688496]
[1761384845810,0.39387815,111690.0,111680.0,0.02823146]
[1761384846241,0.69868691,111690.0,111680.0,0.02823146]
[1761384846443,0.69872691,111690.0,111680.0,0.02823146]
[1761384853684,0.78740135,111690.0,111680.0,0.02823146]
[1761384855831,0.69872691,111690.0,111680.0,0.02823146]
[1761384856746,0.39591815,111690.0,111680.0,0.02823146]
[1761384856954,1.04072691,111690.0,111680.0,0.02823146]
[1761384857158,1.0600375,111690.0,111680.0,0.02823146]
[1761384860775,0.75522874,111690.0,111680.0,0.02823146]
[1761384860999,1.0600375,111690.0,111680.0,0.02823146]
[1761384864119,1.0600375,111690.0,111680.0,0.0013465]
[1761384871965,1.10370282,111690.0,111680.0,0.0013465]
[1761384878774,1.10384296,111690.0,111680.0,0.0013465]
[1761384878948,1.14002524,111690.0,111680.0,0.0013465]
[1761384889785,1.44497414,111690.0,111680.0,0.0013465]
[1761384891778,1.46912933,111690.0,111680.0,0.0013465]
[1761384894456,0.85923153,111690.0,111680.0,0.0013465]
[1761384894660,1.46912933,111690.0,111680.0,0.0013465]
[1761384895917,1.16418043,111690.0,111680.0,0.0013465]
[1761384896121,0.85923153,111690.0,111680.0,0.0013465]
[1761384896322,1.12051511,111690.0,111680.0,0.0013465]
[1761384899431,0.81556621,111690.0,111680.0,0.0013465]
[1761384899785,1.12051511,111690.0,111680.0,0.0013465]
[1761384900194,0.60124621,111690.0,111680.0,0.0013465]
[1761384900393,0.57709102,111690.0,111680.0,0.0013465]
[1761384900598,1.09639992,111690.0,111680.0,0.0013465]
[1761384900836,0.79145102,111690.0,111680.0,0.0013465]
[1761384901050,1.09639992,111690.0,111680.0,0.0013465]
[1761384901253,0.84585764,111690.0,111680.0,0.0013465]
[1761384901460,1.06021764,111690.0,111680.0,0.0013465]
[1761384901814,0.00253109,111690.0,111680.0,0.50328679]
[1761384902068,0.00253109,111690.0,111680.0,2.8801464]
[1761384902398,0.15957109,111690.0,111680.0,2.90702897]
[1761384902720,0.00253109,111690.0,111680.0,2.90702897]
[1761384903328,0.00053109,111690.0,111680.0,2.90702897]
[1761384904747,0.00053109,111690.0,111680.0,2.60208007]
[1761384905038,0.30547999,111690.0,111680.0,0.29713117]
[1761384905244,0.00053109,111690.0,111680.0,0.29713117]
[1761384905971,0.00053109,111690.0,111680.0,0.60208007]
[1761384906382,0.00053109,111690.0,111680.0,2.60208007]
[1761384908377,0.00053109,111690.0,111680.0,2.29713117]
[1761384908580,0.00053109,111690.0,111680.0,2.60208007]
[1761384909667,0.00053109,111690.0,111680.0,2.90702897]
[1761384909875,0.00053109,111690.0,111680.0,3.21197787]
[1761384910077,0.00053109,111690.0,111680.0,3.36901787]
[1761384910281,0.00053109,111690.0,111680.0,3.76633787]
[1761384911212,0.00053109,111690.0,111680.0,3.77133787]
[1761384912064,0.00053109,111690.0,111680.0,3.77233787]
[1761384913597,0.00053109,111690.0,111680.0,3.46738897]
[1761384914123,0.00053109,111690.0,111680.0,2.64313117]
[1761384914372,0.00053109,111690.0,111680.0,3.25302897]
[1761384915039,0.00053109,111690.0,111680.0,3.25202897]
[1761384915980,0.00053109,111690.0,111680.0,3.24702897]
[1761384916180,0.00053109,111690.0,111680.0,3.24802897]
[1761384917794,0.00053109,111690.0,111680.0,2.60308007]
[1761384918202,0.00053109,111690.0,111680.0,2.90802897]
[1761384932878,0.00053109,111690.0,111680.0,3.05772897]
[1761384933071,0.00053109,111690.0,111680.0,3.42463108]
[1761384933359,0.00053109,111690.0,111680.0,3.11968218]
[1761384934115,0.00053109,111690.0,111680.0,3.42463108]
[1761384934733,0.00053109,111690.0,111680.0,3.42363108]
[1761384934965,0.00053109,111690.0,111680.0,3.42463108]
[1761384935182,0.00053109,111690.0,111680.0,3.11968218]
[1761384935346,0.00053109,111690.0,111680.0,3.12568218]
[1761384935533,0.00053109,111690.0,111680.0,3.43063108]
[1761384936197,0.00053109,111690.0,111680.0,3.49506462]
[1761384939146,4e-05,111730.0,111720.0,2.67901897]
[1761384939518,4e-05,111730.0,111720.0,2.2688871]
[1761384939928,4e-05,111730.0,111720.0,2.573836]
[1761384940070,4e-05,111730.0,111720.0,2.2688871]
[1761384940279,4e-05,111730.0,111720.0,2.27769924]
[1761384940489,0.00104,111730.0,111720.0,2.2688871]
[1761384943245,0.48464758,111730.0,111720.0,4.912e-05]
[1761384943441,0.64164758,111730.0,111720.0,4.912e-05]
[1761384943898,0.33704295,111730.0,111720.0,0.17906809]
[1761384946383,0.64164758,111730.0,111720.0,0.17906809]
[1761384947217,0.64164758,111730.0,111720.0,4.912e-05]
[1761384949278,0.69892758,111730.0,111720.0,4.912e-05]
[1761384957605,0.39432295,111730.0,111720.0,0.17906809]
[1761384958127,0.69892758,111730.0,111720.0,0.17906809]
[1761384960428,0.39432295,111730.0,111720.0,0.17906809]
[1761384961221,0.39432295,111730.0,111720.0,4.912e-05]
[1761384961603,0.69892758,111730.0,111720.0,4.912e-05]
[1761384965163,0.39432295,111730.0,111720.0,4.912e-05]
[1761384965351,0.69892758,111730.0,111720.0,4.912e-05]
[1761384966401,0.39432295,111730.0,111720.0,4.912e-05]
[1761384966573,0.69892758,111730.0,111720.0,4.912e-05]
[1761384966770,0.7258035,111730.0,111720.0,4.912e-05]
[1761384972301,0.33252055,111730.0,111720.0,0.2688871]
[1761384972506,0.39428295,111730.0,111720.0,0.2688871]
[1761384972906,0.39428295,111730.0,111720.0,0.08986813]
[1761384974223,0.69888758,111730.0,111720.0,0.08986813]
[1761384975642,0.39428295,111730.0,111720.0,0.08986813]
[1761384975884,0.69888758,111730.0,111720.0,0.08986813]
[1761384976549,0.69888758,111730.0,111720.0,4.912e-05]
[1761384976939,0.72576348,111730.0,111720.0,4.912e-05]
[1761384981159,0.17901897,111720.0,111710.0,0.17915078]
[1761384981364,0.17901897,111720.0,111710.0,0.26905514]
[1761384982011,0.4836236,111720.0,111710.0,0.26905514]
[1761384982217,0.17901897,111720.0,111710.0,0.26905514]
[1761384982631,0.17901897,111720.0,111710.0,0.27005514]
[1761384983968,0.17901897,111720.0,111710.0,0.26905514]
[1761384984172,0.18001897,111720.0,111710.0,0.26905514]
[1761384996341,0.001,111720.0,111710.0,0.26905514]
[1761384996576,0.18001897,111720.0,111710.0,0.26905514]
[1761385011187,0.001,111720.0,111710.0,0.57374545]
[1761385011393,0.15796,111720.0,111710.0,2.26905514]
[1761385019759,0.15796,111720.0,111710.0,2.57374545]
[1761385020596,0.001,111720.0,111710.0,2.57374545]
[1761385020798,0.15796,111720.0,111710.0,2.57374545]
[1761385022959,0.15696,111720.0,111710.0,2.57374545]
[1761385023440,0.15696,111720.0,111710.0,2.57474545]
[1761385026931,0.20592148,111730.0,111720.0,0.17901897]
[1761385027130,0.36288148,111730.0,111720.0,0.26883798]
[1761385028810,0.36388148,111730.0,111720.0,0.26883798]
[1761385028976,0.66857179,111730.0,111720.0,0.26883798]
[1761385029185,0.51161179,111730.0,111720.0,0.26883798]
[1761385029400,0.66857179,111730.0,111720.0,0.26883798]
[1761385032643,0.51161179,111730.0,111720.0,0.26883798]
[1761385032848,0.66857179,111730.0,111720.0,0.26883798]
[1761385033308,0.51161179,111730.0,111720.0,0.26883798]
[1761385033541,0.66857179,111730.0,111720.0,0.26883798]
[1761385036394,0.51161179,111730.0,111720.0,0.26883798]
[1761385036603,0.66857179,111730.0,111720.0,0.26883798]
[1761385037036,0.51161179,111730.0,111720.0,0.26883798]
[1761385037465,0.66857179,111730.0,111720.0,0.26883798]
[1761385037946,0.51161179,111730.0,111720.0,0.26883798]
[1761385038183,0.66857179,111730.0,111720.0,0.26883798]
[1761385038694,0.51161179,111730.0,111720.0,0.26883798]
[1761385038915,0.66857179,111730.0,111720.0,0.26883798]
[1761385039581,0.36388148,111730.0,111720.0,0.26883798]
[1761385042380,0.20692148,111730.0,111720.0,0.26883798]
[1761385042574,0.36388148,111730.0,111720.0,0.26883798]
[1761385045213,0.18487453,111730.0,111720.0,0.26883798]
[1761385047590,0.02791453,111730.0,111720.0,2.57352829]
[1761385047800,0.18487453,111730.0,111720.0,2.57352829]
[1761385048758,0.18387453,111730.0,111720.0,2.57352829]
[1761385048957,0.18387453,111730.0,111720.0,2.57452829]
[1761385049420,0.02691453,111730.0,111720.0,2.8792186]
[1761385050074,0.02691453,111730.0,111720.0,2.57452829]
[1761385050508,0.02691453,111730.0,111720.0,2.8792186]
[1761385055345,4e-05,111730.0,111720.0,2.8792186]
[1761385058265,4e-05,111730.0,111720.0,3.0361386]
[1761385060780,4e-05,111730.0,111720.0,2.73128604]
[1761385076770,4e-05,111730.0,111720.0,2.26983798]
[1761385076915,4e-05,111730.0,111720.0,2.73128604]
[1761385080594,4e-05,111730.0,111720.0,2.42675798]
[1761385080986,0.02690911,111730.0,111720.0,2.42675798]
[1761385083236,0.02690911,111730.0,111720.0,2.26983798]
[1761385087465,0.008,111740.0,111730.0,3.12805907]
[1761385087681,0.00138521,111750.0,111740.0,3.01898693]
[1761385087901,0.00138521,111750.0,111740.0,2.97772767]
[1761385088320,4e-05,111760.0,111750.0,0.51897091]
[1761385088529,4e-05,111760.0,111750.0,3.21784604]
[1761385089206,4e-05,111760.0,111750.0,3.2447057]
[1761385089619,4e-05,111760.0,111750.0,3.24979105]
[1761385091128,0.02685966,111780.0,111770.0,0.17893889]
[1761385091344,4e-05,111800.0,111790.0,0.17890687]
[1761385091572,0.18609583,111800.0,111790.0,0.28661656]
[1761385091817,0.18609583,111800.0,111790.0,0.26872588]
[1761385092024,0.18401583,111800.0,111790.0,0.26872588]
[1761385092227,0.02689583,111800.0,111790.0,0.26872588]
[1761385092431,0.24129583,111800.0,111790.0,0.26872588]
[1761385092638,0.24429583,111800.0,111790.0,0.26881123]
[1761385093465,0.24129583,111800.0,111790.0,0.26881123]
[1761385093672,0.24229583,111800.0,111790.0,0.26881123]
[1761385097340,0.24221583,111800.0,111790.0,0.26881123]
[1761385097697,0.42278771,111800.0,111790.0,0.08990436]
[1761385100536,0.72731577,111800.0,111790.0,8.535e-05]
[1761385104783,0.70045994,111800.0,111790.0,8.535e-05]
[1761385104985,0.39593188,111800.0,111790.0,8.535e-05]
[1761385106015,0.70045994,111800.0,111790.0,8.535e-05]
[1761385106414,1.07664222,111800.0,111790.0,8.535e-05]
[1761385107078,1.10350363,111800.0,111790.0,8.535e-05]
[1761385107836,1.10250363,111800.0,111790.0,8.535e-05]
[1761385109055,1.12170117,111800.0,111790.0,8.535e-05]
[1761385109264,1.30133919,111800.0,111790.0,8.535e-05]
[1761385109803,1.21152018,111800.0,111790.0,8.535e-05]